fUSD/lending_fUSD_20240629
["ID","MTS","AMOUNT","RATE_DAILY","PERIOD"]
[330639599,1719681040155,-500.0,0.00013891,3]
[330639600,1719681040165,-502.53549829,0.00013891,3]
[330639601,1719681040175,-1031.81,0.00013891,3]
[330639602,1719681040184,-500.0,0.00013891,3]
[330639603,1719681040197,-765.92,0.00013891,3]
[330639604,1719681040207,-4805.03726353,0.00013891,3]
[330639605,1719681040296,-3239.12273647,0.00013891,3]
[330639606,1719681040308,-5128.45,0.00013891,3]
[330639607,1719681040317,-500.0,0.00013891,3]
[330639608,1719681040327,-1715.38,0.00013891,3]
[330639609,1719681040337,-556.71,0.00013891,3]
[330639610,1719681040347,-1789.86244199,0.00013891,3]
[330639611,1719681040366,-302.0,0.00013891,3]
[330639612,1719681040391,-304.6,0.00013891,3]
[330639613,1719681040407,-514.39755801,0.00013891,3]
[330639614,1719681040417,-4385.60244199,0.00013891,3]
[330639615,1719681042147,-1538.68755801,0.00013891,3]
[330639616,1719681042157,-788.52,0.00013891,3]
[330639617,1719681042167,-1095.44,0.00013891,3]
[330639618,1719681042177,-500.0,0.00013891,3]
[330639619,1719681042187,-860.6,0.00013891,3]
[330639620,1719681042199,-1359.13,0.00013891,3]
[330639621,1719681042211,-500.0,0.00013891,3]
[330639622,1719681042221,-584.01,0.00013891,3]
[330639623,1719681042231,-2717.4,0.00013891,3]
[330639624,1719681042242,-799.33,0.00013891,3]
[330639625,1719681042252,-760.53,0.00013891,3]
[330639626,1719681042261,-1718.07,0.00013891,3]
[330639627,1719681042271,-6768.36,0.00013891,3]
[330639628,1719681042281,-500.0,0.00013891,3]
[330639629,1719681042291,-500.0,0.00013891,3]
[330639630,1719681042301,-500.0,0.00013891,3]
[330639632,1719681042312,-1630.75,0.00013891,3]
[330639633,1719681042321,-3263.86,0.00013891,3]
[330639634,1719681042331,-500.0,0.00013891,3]
[330639635,1719681042341,-505.95,0.00013891,3]
[330639636,1719681042350,-913.58,0.00013891,3]
[330639637,1719681042359,-6832.29,0.00013891,3]
[330639638,1719681042369,-1244.96,0.00013891,3]
[330639639,1719681042381,-500.0,0.00013891,3]
[330639640,1719681042390,-1643.64,0.00013891,3]
[330639641,1719681042400,-945.13,0.00013891,3]
[330639642,1719681042409,-8281.35,0.00013891,3]
[330639643,1719681042419,-1581.76,0.00013891,3]
[330639644,1719681042428,-4067.82,0.00013891,3]
[330639645,1719681042437,-58349.31,0.00013891,3]
[330639646,1719681042449,-500.0,0.00013891,3]
[330639647,1719681042459,-4576.07,0.00013891,3]
[330639648,1719681042468,-500.0,0.00013891,3]
[330639649,1719681042478,-740.66,0.00013891,3]
[330639650,1719681042487,-500.0,0.00013891,3]
[330639651,1719681042497,-2973.02,0.00013891,3]
[330639652,1719681042507,-661.39,0.00013891,3]
[330639653,1719681042517,-3308.93,0.00013891,3]
[330639654,1719681042527,-500.0,0.00013891,3]
[330639655,1719681042536,-500.0,0.00013891,3]
[330639656,1719681042546,-502.19425189,0.00013891,3]
[330639657,1719681042556,-500.0,0.00013891,3]
[330639658,1719681042565,-2397.4,0.00013891,3]
[330639659,1719681042576,-6314.77,0.00013891,3]
[330639660,1719681042585,-2105.01,0.00013891,3]
[330639661,1719681042595,-500.0,0.00013891,3]
[330639662,1719681042604,-1307.4,0.00013891,3]
[330639663,1719681042614,-826.83,0.00013891,3]
[330639664,1719681042624,-749.09,0.00013891,3]
[330639665,1719681042633,-500.0,0.00013891,3]
[330639666,1719681042643,-1307.82,0.00013891,3]
[330639667,1719681042653,-2783.0,0.00013891,3]
[330639668,1719681042663,-500.0,0.00013891,3]
[330639669,1719681042673,-500.0,0.00013891,3]
[330639670,1719681042682,-1373.75,0.00013891,3]
[330639671,1719681042692,-764.41,0.00013891,3]
[330639672,1719681042702,-2861.68,0.00013891,3]
[330639673,1719681042712,-500.0,0.00013891,3]
[330639674,1719681042722,-500.0,0.00013891,3]
[330639675,1719681042732,-963.2,0.00013891,3]
[330639676,1719681042742,-500.0,0.00013891,3]
[330639677,1719681042751,-3810.32,0.00013891,3]
[330639678,1719681042762,-8018.53,0.00013891,3]
[330639679,1719681042771,-779.2,0.00013891,3]
[330639680,1719681042781,-500.0,0.00013891,3]
[330639681,1719681042791,-500.0,0.00013891,3]
[330639682,1719681042801,-2112.31,0.00013891,3]
[330639683,1719681042811,-500.0,0.00013891,3]
[330639684,1719681042820,-615.7,0.00013891,3]
[330639687,1719681042830,-1540.95,0.00013891,3]
[330639690,1719681042840,-500.0,0.00013891,3]
[330639693,1719681042849,-500.0,0.00013892,3]
[330639696,1719681042859,-1351.01,0.00013892,3]
[330639699,1719681042868,-500.0,0.00013892,3]
[330639701,1719681042877,-500.0,0.00013892,3]
[330639703,1719681042886,-656.62,0.00013892,3]
[330639705,1719681042896,-500.0,0.00013892,3]
[330639707,1719681042906,-500.0,0.00013892,3]
[330639709,1719681042916,-500.0,0.00013892,3]
[330639711,1719681042925,-1937.24,0.00013892,3]
[330639713,1719681042935,-837.33,0.00013892,3]
[330639715,1719681042948,-768.23,0.00013892,3]
[330639717,1719681042957,-1387.36,0.00013892,3]
[330639719,1719681042967,-500.0,0.00013892,3]
[330639722,1719681042976,-1413.17,0.00013892,3]
[330639724,1719681042986,-500.0,0.00013892,3]
[330639725,1719681042996,-500.0,0.00013892,3]
[330639727,1719681043005,-1438.43,0.00013892,3]
[330639729,1719681043014,-727.05,0.00013892,3]
[330639732,1719681043023,-1082.19,0.00013892,3]
[330639735,1719681043032,-500.0,0.00013892,3]
[330639738,1719681043042,-851.18,0.00013892,3]
[330639741,1719681043051,-500.0,0.00013892,3]
[330639744,1719681043060,-500.0,0.00013892,3]
[330639747,1719681043072,-500.0,0.00013892,3]
[330639751,1719681043081,-500.0,0.00013892,3]
[330639754,1719681043091,-558.02,0.00013892,3]
[330639757,1719681043101,-969.14,0.00013892,3]
[330639759,1719681043111,-500.0,0.00013892,3]
[330639761,1719681043121,-548.83,0.00013892,3]
[330639763,1719681043131,-1584.57,0.00013892,3]
[330639764,1719681043140,-949.67,0.00013892,3]
[330639765,1719681043151,-514.82,0.00013892,3]
[330639766,1719681043161,-500.0,0.00013892,3]
[330639767,1719681043170,-805.14,0.00013892,3]
[330639768,1719681043180,-809.51,0.00013892,3]
[330639769,1719681043190,-500.0,0.00013892,3]
[330639770,1719681043201,-1441.04,0.00013892,3]
[330639771,1719681043210,-500.0,0.00013892,3]
[330639772,1719681043220,-500.0,0.00013892,2]
[330639773,1719681043229,-1832.33,0.00013892,3]
[330639774,1719681043239,-619.51,0.00013892,3]
[330639775,1719681043251,-1712.51,0.00013892,3]
[330639776,1719681043260,-1103.57,0.00013892,3]
[330639777,1719681043270,-500.0,0.00013892,3]
[330639778,1719681043280,-500.0,0.00013892,3]
[330639779,1719681043289,-500.40122315,0.00013892,3]
[330639780,1719681043303,-503.33141171,0.00013892,3]
[330639781,1719681043313,-397.14591763,0.00013892,3]
[330639782,1719681043322,-560.27,0.00013892,3]
[330639783,1719681043332,-1248.61,0.00013892,3]
[330639784,1719681043343,-1462.47,0.00013892,3]
[330639785,1719681043352,-1054.6,0.00013892,3]
[330639786,1719681043362,-706.28,0.00013892,3]
[330639787,1719681043372,-500.0,0.00013892,3]
[330639788,1719681043382,-1598.34,0.00013892,3]
[330639789,1719681043392,-500.0,0.00013892,3]
[330639790,1719681043401,-670.1,0.00013892,3]
[330639791,1719681043410,-602.07,0.00013892,3]
[330639792,1719681043420,-500.0,0.00013892,3]
[330639793,1719681043429,-539.11,0.00013892,3]
[330639794,1719681043438,-1015.25,0.00013892,3]
[330639795,1719681043448,-500.0,0.00013892,3]
[330639796,1719681043457,-500.0,0.00013892,3]
[330639797,1719681043467,-503.13,0.00013892,3]
[330639798,1719681043476,-660.27,0.00013892,3]
[330639799,1719681043485,-173.07085329,0.00013892,3]
[330639800,1719681043494,-1429.32,0.00013892,3]
[330639801,1719681043504,-1309.09,0.00013892,3]
[330639802,1719681043513,-1581.35,0.00013892,3]
[330639803,1719681043522,-501.32,0.00013892,3]
[330639804,1719681043532,-1322.57,0.00013892,3]
[330639805,1719681043541,-500.0,0.00013892,3]
[330639806,1719681043550,-500.0,0.00013892,3]
[330639807,1719681043559,-697.6,0.00013892,3]
[330639808,1719681043569,-500.0,0.00013892,3]
[330639809,1719681043578,-500.0,0.00013892,3]
[330639810,1719681043587,-793.16,0.00013892,3]
[330639811,1719681043596,-500.0,0.00013892,3]
[330639812,1719681043605,-729.73,0.00013892,3]
[330639815,1719681043967,-1810.69,0.00013892,3]
[330639816,1719681044006,-500.0,0.00013892,3]
[330639817,1719681044016,-500.0,0.00013892,3]
[330639818,1719681044025,-500.0,0.00013892,3]
[330639819,1719681044034,-500.0,0.00013892,3]
[330639820,1719681044044,-1504.35,0.00013892,3]
[330639821,1719681044054,-646.75215711,0.00013892,3]
[330639822,1719681044063,-543.95391748,0.00013892,3]
[330639823,1719681044072,-500.0,0.00013892,3]
[330639824,1719681044082,-500.0,0.00013892,3]
[330639825,1719681044091,-1982.22,0.00013892,3]
[330639826,1719681044100,-500.0,0.00013892,3]
[330639827,1719681044110,-500.0,0.00013892,3]
[330639828,1719681044120,-948.59,0.00013892,3]
[330639829,1719681044129,-500.0,0.00013892,3]
[330639830,1719681044139,-500.0,0.00013892,3]
[330639831,1719681044149,-1277.99,0.00013892,3]
[330639832,1719681044160,-824.39,0.00013892,3]
[330639833,1719681044169,-500.0,0.00013892,3]
[330639834,1719681044179,-2850.61,0.00013892,3]
[330639835,1719681044189,-500.0,0.00013892,3]
[330639836,1719681044198,-500.0,0.00013892,3]
[330639837,1719681044207,-500.0,0.00013892,3]
[330639838,1719681044217,-2021.89,0.00013892,3]
[330639839,1719681044226,-500.0,0.00013892,3]
[330639840,1719681044235,-500.0,0.00013892,3]
[330639841,1719681044248,-500.0,0.00013892,3]
[330639842,1719681044258,-2498.27,0.00013892,3]
[330639843,1719681044268,-500.0,0.00013892,3]
[330639844,1719681044277,-708.56,0.00013892,3]
[330639845,1719681044287,-500.0,0.00013892,3]
[330639846,1719681044297,-500.0,0.00013892,3]
[330639847,1719681044310,-638.77,0.00013892,3]
[330639848,1719681044319,-500.0,0.00013892,3]
[330639849,1719681044329,-500.0,0.00013892,3]
[330639850,1719681044338,-534.39,0.00013892,3]
[330639851,1719681044349,-500.0,0.00013892,3]
[330639852,1719681044359,-500.0,0.00013892,3]
[330639853,1719681044368,-500.0,0.00013892,3]
[330639854,1719681044377,-531.05,0.00013892,3]
[330639855,1719681044388,-500.0,0.00013892,3]
[330639856,1719681044398,-956.31,0.00013892,3]
[330639857,1719681044408,-500.0,0.00013892,3]
[330639858,1719681044418,-1476.62,0.00013892,3]
[330639859,1719681044428,-500.0,0.00013892,3]
[330639860,1719681044437,-500.0,0.00013892,3]
[330639861,1719681044448,-500.0,0.00013892,3]
[330639862,1719681044457,-645.58391175,0.00013892,3]
[330639863,1719681044466,-519.99,0.00013892,3]
[330639864,1719681044476,-500.0,0.00013892,3]
[330639865,1719681044485,-500.0,0.00013892,3]
[330639866,1719681044495,-500.0,0.00013892,3]
[330639867,1719681044504,-500.0,0.00013892,3]
[330639868,1719681044514,-2500.0,0.00013892,3]
[330639869,1719681044523,-615.58,0.00013892,3]
[330639870,1719681044533,-500.0,0.00013892,3]
[330639871,1719681044543,-1339.69,0.00013892,3]
[330639872,1719681044552,-406.84789165,0.00013892,3]
[330639873,1719681044562,-2850.56,0.00013892,3]
[330639874,1719681044571,-500.0,0.00013892,3]
[330639875,1719681044580,-500.0,0.00013892,3]
[330639876,1719681044589,-1184.55,0.00013892,3]
[330639877,1719681044598,-3366.08,0.00013892,3]
[330639878,1719681044608,-617.29,0.00013892,3]
[330639879,1719681044617,-500.0,0.00013892,3]
[330639880,1719681044626,-780.78,0.00013892,3]
[330639881,1719681044636,-841.22,0.00013892,3]
[330639882,1719681044646,-644.2,0.00013892,3]
[330639883,1719681044655,-500.0,0.00013892,3]
[330639884,1719681044665,-500.0,0.00013892,3]
[330639885,1719681044674,-878.1,0.00013892,3]
[330639886,1719681044683,-500.0,0.00013892,3]
[330639887,1719681044693,-500.0,0.00013892,3]
[330639888,1719681044702,-1773.17,0.00013892,3]
[330639889,1719681044712,-557.92,0.00013892,3]
[330639890,1719681044722,-500.0,0.00013892,3]
[330639891,1719681044732,-500.0,0.00013892,3]
[330639892,1719681044741,-500.0,0.00013892,2]
[330639893,1719681044750,-1284.24,0.00013892,3]
[330639894,1719681044759,-607.96,0.00013892,3]
[330639895,1719681044770,-750.28,0.00013892,3]
[330639896,1719681044780,-2391.92,0.00013892,3]
[330639897,1719681044790,-500.0,0.00013892,3]
[330639898,1719681044799,-277.28,0.00013892,3]
[330639899,1719681044808,-2563.65,0.00013892,3]
[330639900,1719681044818,-500.0,0.00013892,3]
[330639901,1719681044827,-774.76,0.00013892,3]
[330639902,1719681044836,-500.0,0.00013892,3]
[330639903,1719681044846,-4922.34,0.00013892,3]
[330639904,1719681044855,-500.0,0.00013892,3]
[330639905,1719681044865,-815.64,0.00013892,3]
[330639906,1719681044874,-484.17273129,0.00013892,3]
[330639907,1719681044884,-500.0,0.00013892,3]
[330639908,1719681044893,-500.0,0.00013892,3]
[330639909,1719681044902,-565.61,0.00013892,3]
[330639910,1719681044911,-500.0,0.00013892,3]
[330639911,1719681044921,-500.0,0.00013892,3]
[330639912,1719681044930,-500.0,0.00013892,3]
[330639913,1719681044940,-3289.1,0.00013892,3]
[330639914,1719681044949,-500.0,0.00013892,3]
[330639915,1719681044959,-500.0,0.00013892,3]
[330639916,1719681044968,-1000.0,0.00013892,3]
[330639917,1719681044978,-542.07,0.00013892,3]
[330639918,1719681044988,-914.74,0.00013892,3]
[330639919,1719681044998,-1015.85,0.00013892,3]
[330639920,1719681045009,-2644.84,0.00013892,3]
[330639921,1719681045018,-500.0,0.00013892,3]
[330639922,1719681045028,-1121.89,0.00013892,3]
[330639923,1719681045037,-500.0,0.00013892,3]
[330639924,1719681045047,-973.36,0.00013892,3]
[330639925,1719681045056,-640.7,0.00013892,3]
[330639926,1719681045066,-500.0,0.00013892,3]
[330639927,1719681045075,-1919.54,0.00013892,3]
[330639928,1719681045084,-2275.53,0.00013892,3]
[330639929,1719681045093,-500.0,0.00013892,3]
[330639930,1719681045102,-1682.57,0.00013892,3]
[330639931,1719681045112,-500.0,0.00013892,3]
[330639932,1719681045121,-1859.02,0.00013892,3]
[330639933,1719681045130,-500.0,0.00013892,3]
[330639934,1719681045140,-919.28,0.00013892,3]
[330639935,1719681045150,-1161.34,0.00013892,3]
[330639936,1719681045160,-1512.86,0.00013892,3]
[330639937,1719681045169,-1613.88,0.00013892,3]
[330639938,1719681045181,-500.0,0.00013892,3]
[330639939,1719681045191,-500.0,0.00013892,3]
[330639940,1719681045203,-500.0,0.00013892,3]
[330639941,1719681045212,-2002.1,0.00013892,3]
[330639942,1719681045224,-2887.75,0.00013892,3]
[330639943,1719681045234,-500.0,0.00013892,3]
[330639944,1719681045243,-500.0,0.00013892,3]
[330639945,1719681045253,-547.94,0.00013892,3]
[330639946,1719681045262,-500.0,0.00013892,3]
[330639947,1719681045272,-500.0,0.00013892,3]
[330639948,1719681045281,-500.0,0.00013892,3]
[330639949,1719681045290,-500.0,0.00013892,3]
[330639950,1719681045300,-1234.46,0.00013892,3]
[330639951,1719681045312,-1367.1,0.00013892,3]
[330639952,1719681045321,-500.0,0.00013892,3]
[330639953,1719681045330,-1898.59,0.00013892,3]
[330639954,1719681045340,-500.0,0.00013892,3]
[330639955,1719681045349,-539.41,0.00013892,3]
[330639956,1719681045358,-1836.16,0.00013892,3]
[330639957,1719681045368,-2560.2,0.00013892,3]
[330639958,1719681045379,-781.09,0.00013892,3]
[330639959,1719681045388,-500.0,0.00013892,3]
[330639960,1719681045398,-1231.73,0.00013892,3]
[330639961,1719681045407,-2923.93,0.00013892,3]
[330639962,1719681045416,-986.26,0.00013892,3]
[330639963,1719681045425,-557.61,0.00013892,3]
[330639964,1719681045434,-500.71261055,0.00013892,3]
[330639965,1719681045444,-1840.23,0.00013892,3]
[330639966,1719681045453,-500.0,0.00013892,3]
[330639967,1719681045462,-500.0,0.00013892,3]
[330639968,1719681045472,-1797.39,0.00013892,3]
[330639969,1719681045481,-240.26137053,0.00013892,3]
[330639970,1719681045942,-500.0,0.00013891,3]
[330639971,1719681045953,-259.73862947,0.00013892,3]
[330639972,1719681045963,-859.25,0.00013892,3]
[330639973,1719681045973,-500.0,0.00013892,3]
[330639974,1719681045983,-803.32,0.00013892,3]
[330639975,1719681045992,-2913.39,0.00013892,3]
[330639976,1719681046002,-814.8,0.00013892,3]
[330639977,1719681046012,-2366.63,0.00013892,3]
[330639978,1719681046022,-500.0,0.00013892,3]
[330639979,1719681046032,-557.35,0.00013892,3]
[330639980,1719681046042,-3882.89,0.00013892,3]
[330639981,1719681046053,-500.0,0.00013892,3]
[330639982,1719681046063,-500.0,0.00013892,3]
[330639983,1719681046072,-734.2,0.00013892,3]
[330639984,1719681046082,-500.0,0.00013892,3]
[330639985,1719681046092,-500.0,0.00013892,3]
[330639986,1719681046101,-500.0,0.00013892,3]
[330639987,1719681046111,-889.72,0.00013892,3]
[330639988,1719681046121,-668.09,0.00013892,3]
[330639989,1719681046130,-500.0,0.00013892,3]
[330639990,1719681046140,-500.0,0.00013892,3]
[330639991,1719681046151,-500.0,0.00013892,3]
[330639992,1719681046160,-1070.84,0.00013892,3]
[330639993,1719681046171,-1624.08,0.00013892,3]
[330639994,1719681046180,-500.0,0.00013892,3]
[330639995,1719681046190,-500.0,0.00013892,3]
[330639996,1719681046200,-2191.24,0.00013892,3]
[330639997,1719681046210,-500.0,0.00013892,3]
[330639998,1719681046219,-1913.85,0.00013892,3]
[330639999,1719681046229,-718.71,0.00013892,3]
[330640000,1719681046239,-500.0,0.00013892,3]
[330640001,1719681046248,-1693.68,0.00013892,3]
[330640002,1719681046258,-1289.81,0.00013892,3]
[330640003,1719681046269,-1660.42,0.00013892,3]
[330640004,1719681046279,-952.12,0.00013892,3]
[330640005,1719681046289,-1724.24,0.00013892,3]
[330640006,1719681046303,-500.0,0.00013892,3]
[330640007,1719681046313,-1578.18,0.00013892,3]
[330640008,1719681046323,-998.8,0.00013892,3]
[330640009,1719681046332,-500.0,0.00013892,3]
[330640010,1719681046342,-889.7,0.00013892,3]
[330640011,1719681046352,-1703.16,0.00013892,3]
[330640012,1719681046361,-1489.67,0.00013892,3]
[330640013,1719681046371,-516.29,0.00013892,3]
[330640016,1719681046508,-500.0,0.00013892,3]
[330640017,1719681046517,-1265.27,0.00013892,3]
[330640018,1719681046527,-500.0,0.00013892,3]
[330640019,1719681046536,-500.0,0.00013892,3]
[330640020,1719681046545,-848.66,0.00013892,3]
[330640021,1719681046554,-500.0,0.00013892,3]
[330640022,1719681046563,-2503.0,0.00013892,3]
[330640023,1719681046572,-500.0,0.00013892,3]
[330640024,1719681046581,-500.0,0.00013892,3]
[330640025,1719681046591,-500.0,0.00013892,3]
[330640026,1719681046600,-620.4,0.00013892,3]
[330640027,1719681046609,-2257.41,0.00013892,3]
[330640028,1719681046618,-492.05714417,0.00013892,3]
[330640029,1719681046627,-500.0,0.00013892,3]
[330640030,1719681046636,-1169.3,0.00013892,3]
[330640031,1719681046645,-537.02,0.00013892,3]
[330640032,1719681046654,-590.9,0.00013892,3]
[330640033,1719681046663,-2850.53,0.00013892,3]
[330640034,1719681046673,-500.0,0.00013892,3]
[330640035,1719681046687,-501.3841607,0.00013892,3]
[330640036,1719681046696,-1440.88,0.00013892,3]
[330640037,1719681046706,-505.87,0.00013892,3]
[330640038,1719681046715,-1354.19,0.00013892,3]
[330640039,1719681046725,-500.0,0.00013892,3]
[330640040,1719681046734,-151.0,0.00013892,2]
[330640041,1719681046743,-649.71,0.00013892,3]
[330640042,1719681046753,-2320.05,0.00013892,3]
[330640043,1719681046763,-500.38290744,0.00013893,3]
[330640044,1719681046772,-500.0,0.00013893,3]
[330640045,1719681046781,-500.0,0.00013893,3]
[330640046,1719681046791,-200.74415199,0.00013893,3]
[330640047,1719681046800,-500.0,0.00013893,3]
[330640048,1719681046810,-524.85568369,0.00013893,3]
[330640049,1719681046819,-500.0,0.00013893,3]
[330640050,1719681046828,-500.0,0.00013893,3]
[330640051,1719681046838,-500.0,0.00013893,2]
[330640052,1719681046847,-3223.18,0.00013893,3]
[330640053,1719681046857,-500.0,0.00013893,3]
[330640054,1719681046867,-2003.63,0.00013893,3]
[330640055,1719681046877,-500.0,0.00013893,3]
[330640056,1719681046886,-1207.51,0.00013893,3]
[330640057,1719681046896,-8628.0,0.00013893,3]
[330640058,1719681046906,-1656.36,0.00013893,3]
[330640059,1719681046915,-2461.7,0.00013893,3]
[330640060,1719681046924,-1353.5,0.00013893,3]
[330640061,1719681046934,-9720.83,0.00013893,3]
[330640062,1719681046943,-621.37,0.00013893,3]
[330640063,1719681046954,-500.0,0.00013893,3]
[330640064,1719681046964,-2218.47,0.00013893,3]
[330640065,1719681046974,-784.41994556,0.00013893,3]
[330640066,1719681047756,-709.79005444,0.00013893,3]
[330640067,1719681047765,-2493.76,0.00013893,3]
[330640068,1719681047776,-2225.09,0.00013893,3]
[330640069,1719681047785,-1978.6,0.00013893,3]
[330640070,1719681047794,-931.1,0.00013893,3]
[330640071,1719681047804,-500.0,0.00013893,3]
[330640072,1719681047813,-1808.57,0.00013893,3]
[330640073,1719681047822,-1205.03693434,0.00013893,3]
[330640074,1719681047844,-1295.20306566,0.00013893,3]
[330640075,1719681047854,-2916.53,0.00013893,3]
[330640076,1719681047863,-3210.95,0.00013893,3]
[330640077,1719681047873,-500.0,0.00013893,3]
[330640078,1719681047883,-500.0,0.00013893,3]
[330640079,1719681047892,-934.0,0.00013893,3]
[330640080,1719681047901,-1492.47,0.00013893,3]
[330640081,1719681047911,-2063.1,0.00013893,3]
[330640082,1719681047921,-2626.03,0.00013893,3]
[330640083,1719681047930,-531.32,0.00013893,3]
[330640084,1719681047939,-500.0,0.00013893,3]
[330640085,1719681047948,-556.89,0.00013893,3]
[330640086,1719681047959,-1747.79,0.00013893,3]
[330640087,1719681047968,-6867.49,0.00013893,3]
[330640088,1719681047978,-2545.32,0.00013893,3]
[330640089,1719681047987,-9983.47,0.00013893,3]
[330640090,1719681047996,-3597.44,0.00013893,3]
[330640091,1719681048006,-3635.01,0.00013893,3]
[330640092,1719681048015,-1605.98,0.00013893,2]
[330640093,1719681048026,-3361.41,0.00013893,3]
[330640094,1719681048035,-500.0,0.00013893,3]
[330640095,1719681048045,-1815.83,0.00013893,3]
[330640096,1719681048055,-500.0,0.00013893,3]
[330640097,1719681048065,-4371.44,0.00013893,3]
[330640098,1719681048074,-799.1,0.00013893,3]
[330640099,1719681048084,-1387.09,0.00013893,3]
[330640100,1719681048093,-349.768115,0.00013893,2]
[330640101,1719681048103,-3576.07,0.00013893,3]
[330640102,1719681048113,-349.768115,0.00013893,2]
[330640103,1719681048125,-151.0,0.00013893,2]
[330640104,1719681048134,-1973.06,0.00013893,3]
[330640105,1719681048144,-151.0,0.00013893,2]
[330640106,1719681048155,-151.0,0.00013893,2]
[330640107,1719681048166,-2126.01675005,0.00013893,3]
[330640108,1719681048179,-395.17296,0.00013893,3]
[330640109,1719681048208,-141.28028995,0.00013893,3]
[330640110,1719681048217,-151.0,0.00013893,2]
[330640111,1719681048228,-151.0,0.00013893,2]
[330640112,1719681048237,-1587.15,0.00013893,3]
[330640113,1719681048246,-1370.857102,0.00013893,2]
[330640114,1719681048256,-926.8,0.00013893,3]
[330640115,1719681048265,-1370.857102,0.00013893,2]
[330640116,1719681048275,-1413.77,0.00013893,3]
[330640117,1719681048284,-151.0,0.00013893,2]
[330640118,1719681048294,-151.0,0.00013893,2]
[330640119,1719681048306,-1163.9,0.00013893,3]
[330640120,1719681048315,-1545.79,0.00013893,3]
[330640121,1719681048325,-1791.46,0.00013893,3]
[330640122,1719681048335,-2362.48,0.00013893,3]
[330640123,1719681048346,-912.0,0.00013893,3]
[330640124,1719681048356,-10756.5,0.00013893,3]
[330640125,1719681048366,-1881.95,0.00013893,3]
[330640126,1719681048377,-160.125349,0.00013893,2]
[330640127,1719681048387,-500.0,0.00013893,3]
[330640128,1719681048398,-160.125349,0.00013893,2]
[330640129,1719681048408,-151.0,0.00013893,2]
[330640130,1719681048418,-151.0,0.00013893,2]
[330640131,1719681048427,-500.0,0.00013893,3]
[330640132,1719681048436,-500.0,0.00013893,3]
[330640133,1719681048446,-3910.26,0.00013893,3]
[330640134,1719681048457,-793.95,0.00013893,3]
[330640135,1719681048466,-188.272434,0.00013893,2]
[330640136,1719681048479,-4103.43,0.00013893,3]
[330640137,1719681048489,-4952.07,0.00013893,3]
[330640138,1719681048498,-1657.9,0.00013893,3]
[330640139,1719681048507,-6698.82,0.00013893,3]
[330640140,1719681048518,-3927.07,0.00013893,3]
[330640141,1719681048527,-1403.94,0.00013893,3]
[330640142,1719681048537,-500.0,0.00013894,2]
[330640143,1719681048547,-500.0,0.00013894,2]
[330640144,1719681048556,-500.0,0.00013894,2]
[330640145,1719681048566,-500.0,0.00013894,2]
[330640146,1719681048575,-151.0,0.00013894,2]
[330640147,1719681048585,-151.0,0.00013894,2]
[330640148,1719681048594,-3920.03,0.00013894,3]
[330640149,1719681048604,-4251.72,0.00013894,3]
[330640150,1719681048613,-276.941213,0.00013894,2]